[Event "Betsys MČR v online bleskovém šachu 2021"]
[Site "Chess.com"]
[Date "2021.04.17"]
[Round "12"]
[White "doktorovak"]
[Black "Mikulas19"]
[Result "0-1"]
[WhiteElo "1681"]
[BlackElo "1895"]
[TimeControl "180+1"]
[EndTime "11:01:50 PDT"]
[Termination "Uživatel Mikulas19 zvítězil na čas"]

1. e4 {[%clk 0:03:00.9]} 1... e5 {[%clk 0:02:59.9]} 2. Nf3 {[%clk 0:03:00.3]}
2... Nf6 {[%clk 0:02:59.9]} 3. Nc3 {[%clk 0:02:59.5]} 3... Nc6 {[%clk
0:02:59.6]} 4. Bc4 {[%clk 0:02:59.4]} 4... Bc5 {[%clk 0:02:59.2]} 5. O-O {[%clk
0:02:58.8]} 5... d6 {[%clk 0:02:57.8]} 6. h3 {[%clk 0:02:58.2]} 6... Bb6 {[%clk
0:02:50.7]} 7. d3 {[%clk 0:02:57.9]} 7... Be6 {[%clk 0:02:43.2]} 8. Bb3 {[%clk
0:02:56.7]} 8... Qd7 {[%clk 0:02:42.6]} 9. Kh2 {[%clk 0:02:52.9]} 9... h6 {[%clk
0:02:40.6]} 10. Nd5 {[%clk 0:02:48.7]} 10... O-O-O {[%clk 0:02:35.5]} 11. Nxb6+
{[%clk 0:02:45.4]} 11... axb6 {[%clk 0:02:36.4]} 12. Bxe6 {[%clk 0:02:39.2]}
12... fxe6 {[%clk 0:02:20.5]} 13. a4 {[%clk 0:02:39.1]} 13... g5 {[%clk
0:02:19.4]} 14. Ng1 {[%clk 0:02:32.6]} 14... Qg7 {[%clk 0:02:16.2]} 15. a5
{[%clk 0:02:31.6]} 15... Nxa5 {[%clk 0:02:12.9]} 16. b4 {[%clk 0:02:31.6]} 16...
Nc6 {[%clk 0:02:12.6]} 17. c3 {[%clk 0:02:27.3]} 17... h5 {[%clk 0:02:06.2]} 18.
f3 {[%clk 0:02:27.1]} 18... g4 {[%clk 0:02:00.2]} 19. fxg4 {[%clk 0:02:25.8]}
19... hxg4 {[%clk 0:01:56]} 20. Qe1 {[%clk 0:01:58.7]} 20... Nh5 {[%clk
0:01:45.4]} 21. Ne2 {[%clk 0:01:44.6]} 21... gxh3 {[%clk 0:01:40.1]} 22. gxh3
{[%clk 0:01:42]} 22... Kb8 {[%clk 0:01:15.5]} 23. Be3 {[%clk 0:01:29.3]} 23...
Rdg8 {[%clk 0:01:08.7]} 24. Rg1 {[%clk 0:01:28.3]} 24... Qf7 {[%clk 0:01:08]}
25. Qf2 {[%clk 0:01:24.6]} 25... Qxf2+ {[%clk 0:00:46.1]} 26. Bxf2 {[%clk
0:01:23.4]} 26... Nf4 {[%clk 0:00:45.1]} 27. Nxf4 {[%clk 0:01:14.7]} 27... exf4
{[%clk 0:00:46]} 28. Raf1 {[%clk 0:01:08.4]} 28... Ne5 {[%clk 0:00:34.6]} 29.
Rxg8+ {[%clk 0:01:00.8]} 29... Rxg8 {[%clk 0:00:35.5]} 30. d4 {[%clk 0:00:58.9]}
30... Nf3+ {[%clk 0:00:30.2]} 31. Kh1 {[%clk 0:00:57.4]} 31... Nd2 {[%clk
0:00:29.7]} 32. Rg1 {[%clk 0:00:54]} 32... Rxg1+ {[%clk 0:00:28.1]} 33. Kxg1
{[%clk 0:00:51.6]} 33... Nxe4 {[%clk 0:00:28.7]} 34. Be1 {[%clk 0:00:49.7]}
34... Kc8 {[%clk 0:00:26.8]} 35. Kg2 {[%clk 0:00:49.9]} 35... e5 {[%clk
0:00:20.7]} 36. h4 {[%clk 0:00:44.1]} 36... Nf6 {[%clk 0:00:18.2]} 37. Kf3
{[%clk 0:00:42]} 37... Kd7 {[%clk 0:00:17.6]} 38. dxe5 {[%clk 0:00:34.4]} 38...
dxe5 {[%clk 0:00:17.3]} 39. c4 {[%clk 0:00:34.1]} 39... Ke6 {[%clk 0:00:17.1]}
40. Bd2 {[%clk 0:00:28.3]} 40... Kf5 {[%clk 0:00:16.7]} 41. Bc3 {[%clk
0:00:19.1]} 41... e4+ {[%clk 0:00:15]} 42. Kf2 {[%clk 0:00:19.4]} 42... Nh5
{[%clk 0:00:13]} 43. c5 {[%clk 0:00:15.5]} 43... bxc5 {[%clk 0:00:12.4]} 44.
bxc5 {[%clk 0:00:15.7]} 44... Kg4 {[%clk 0:00:11.5]} 45. Be5 {[%clk 0:00:12.7]}
45... e3+ {[%clk 0:00:09.9]} 46. Ke2 {[%clk 0:00:11.1]} 46... Kf5 {[%clk
0:00:08.5]} 47. Bxc7 {[%clk 0:00:10.8]} 47... Ke4 {[%clk 0:00:07.8]} 48. Bd8
{[%clk 0:00:05.2]} 48... f3+ {[%clk 0:00:07.2]} 49. Ke1 {[%clk 0:00:03.7]} 49...
f2+ {[%clk 0:00:06.3]} 50. Ke2 {[%clk 0:00:02.8]} 50... Ng3+ {[%clk 0:00:05.8]}
0-1

[Event "Betsys MČR v online bleskovém šachu 2021"]
[Site "Chess.com"]
[Date "2021.04.17"]
[Round "12"]
[White "psvoboda72"]
[Black "Nevimjakhrat"]
[Result "1-0"]
[WhiteElo "1695"]
[BlackElo "1437"]
[TimeControl "180+1"]
[EndTime "11:01:51 PDT"]
[Termination "Uživatel psvoboda72 zvítězil na čas"]

1. Nf3 {[%clk 0:03:00.1]} 1... Nf6 {[%clk 0:02:44.5]} 2. b3 {[%clk 0:02:59]}
2... d5 {[%clk 0:02:44.2]} 3. Bb2 {[%clk 0:02:58.7]} 3... Nc6 {[%clk 0:02:43.3]}
4. d4 {[%clk 0:02:56]} 4... Bg4 {[%clk 0:02:38.8]} 5. h3 {[%clk 0:02:54.1]} 5...
Bh5 {[%clk 0:02:37.9]} 6. g4 {[%clk 0:02:51.2]} 6... Bg6 {[%clk 0:02:37.8]} 7.
e3 {[%clk 0:02:49.9]} 7... Be4 {[%clk 0:02:34.9]} 8. Bb5 {[%clk 0:02:45.7]} 8...
a6 {[%clk 0:02:29.8]} 9. Bxc6+ {[%clk 0:02:42]} 9... bxc6 {[%clk 0:02:29.8]} 10.
Nbd2 {[%clk 0:02:40.8]} 10... e6 {[%clk 0:02:23.2]} 11. Nxe4 {[%clk 0:02:38.1]}
11... Nxe4 {[%clk 0:02:23.9]} 12. Ne5 {[%clk 0:02:36.3]} 12... Bb4+ {[%clk
0:02:17.5]} 13. Ke2 {[%clk 0:02:11.2]} 13... Bc3 {[%clk 0:02:05.3]} 14. Rb1
{[%clk 0:01:59.9]} 14... Bxb2 {[%clk 0:02:03.8]} 15. Qd3 {[%clk 0:01:38.5]}
15... Nc3+ {[%clk 0:01:53.5]} 16. Kd2 {[%clk 0:01:37.2]} 16... Nxb1+ {[%clk
0:01:50.2]} 17. Rxb1 {[%clk 0:01:34.7]} 17... Ba3 {[%clk 0:01:50.6]} 18. Nxc6
{[%clk 0:01:32.8]} 18... Qh4 {[%clk 0:01:41.9]} 19. Ke2 {[%clk 0:01:23.7]} 19...
O-O {[%clk 0:01:36.1]} 20. b4 {[%clk 0:01:21.5]} 20... Bxb4 {[%clk 0:01:16.7]}
21. Rxb4 {[%clk 0:01:10.1]} 21... Qxh3 {[%clk 0:01:15.9]} 22. Ne7+ {[%clk
0:01:07.3]} 22... Kh8 {[%clk 0:01:11.8]} 23. Kd2 {[%clk 0:00:43.2]} 23... Qh4
{[%clk 0:01:01.9]} 24. Nc6 {[%clk 0:00:36.3]} 24... Qxf2+ {[%clk 0:00:59.8]} 25.
Kc3 {[%clk 0:00:36.5]} 25... Qg2 {[%clk 0:00:51.8]} 26. Rb1 {[%clk 0:00:34.6]}
26... Qxg4 {[%clk 0:00:50.8]} 27. Rh1 {[%clk 0:00:31.1]} 27... h6 {[%clk
0:00:47]} 28. Ne5 {[%clk 0:00:28.4]} 28... Qf5 {[%clk 0:00:38.2]} 29. Qe2 {[%clk
0:00:28.2]} 29... f6 {[%clk 0:00:31]} 30. Rf1 {[%clk 0:00:27.8]} 30... Qh3
{[%clk 0:00:20.5]} 31. Ng6+ {[%clk 0:00:26.7]} 31... Kg8 {[%clk 0:00:19.1]} 32.
Nxf8 {[%clk 0:00:25.6]} 32... Rxf8 {[%clk 0:00:19.9]} 33. Qf2 {[%clk 0:00:22.8]}
33... Kh8 {[%clk 0:00:18.5]} 34. Qf4 {[%clk 0:00:20.8]} 34... g5 {[%clk
0:00:14]} 35. Qf2 {[%clk 0:00:17.9]} 35... f5 {[%clk 0:00:13.5]} 36. Rg1 {[%clk
0:00:16.6]} 36... g4 {[%clk 0:00:10.9]} 37. Rg3 {[%clk 0:00:16]} 37... Qh4
{[%clk 0:00:09.9]} 38. Qf4 {[%clk 0:00:15.4]} 38... Rf6 {[%clk 0:00:08.5]} 39.
Qxc7 {[%clk 0:00:14.1]} 39... Qh1 {[%clk 0:00:07.8]} 40. Qd8+ {[%clk 0:00:13.1]}
40... Kh7 {[%clk 0:00:07.6]} 41. Qe7+ {[%clk 0:00:13]} 41... Kg6 {[%clk
0:00:07.6]} 42. Qe8+ {[%clk 0:00:12.4]} 42... Rf7 {[%clk 0:00:07.1]} 43. Qxe6+
{[%clk 0:00:11.9]} 43... Rf6 {[%clk 0:00:07.1]} 44. Qe8+ {[%clk 0:00:11.5]}
44... Kg5 {[%clk 0:00:06.2]} 45. Qg8+ {[%clk 0:00:10.2]} 45... Kh5 {[%clk
0:00:06.6]} 46. Qe8+ {[%clk 0:00:06.5]} 46... Rg6 {[%clk 0:00:06.8]} 47. Qe5
{[%clk 0:00:05.7]} 47... Rg5 {[%clk 0:00:04.7]} 48. Kb4 {[%clk 0:00:03.5]} 48...
f4 {[%clk 0:00:03.3]} 49. Qxf4 {[%clk 0:00:02.2]} 1-0

[Event "Betsys MČR v online bleskovém šachu 2021"]
[Site "Chess.com"]
[Date "2021.04.17"]
[Round "12"]
[White "Sorcercream"]
[Black "Dale00007"]
[Result "0-1"]
[WhiteElo "1016"]
[BlackElo "1392"]
[TimeControl "180+1"]
[EndTime "11:01:51 PDT"]
[Termination "Uživatel Dale00007 zvítězil na čas"]

1. e4 {[%clk 0:03:00.9]} 1... c5 {[%clk 0:02:58.9]} 2. Nf3 {[%clk 0:03:01]} 2...
d6 {[%clk 0:02:58]} 3. c3 {[%clk 0:02:59.3]} 3... Nf6 {[%clk 0:02:56.7]} 4. Qc2
{[%clk 0:02:49.4]} 4... Nc6 {[%clk 0:02:53.6]} 5. Bb5 {[%clk 0:02:44.3]} 5...
Bd7 {[%clk 0:02:48.8]} 6. O-O {[%clk 0:02:41.3]} 6... a6 {[%clk 0:02:46.9]} 7.
Be2 {[%clk 0:02:29.1]} 7... b5 {[%clk 0:02:33.3]} 8. d4 {[%clk 0:02:23.2]} 8...
cxd4 {[%clk 0:02:28.6]} 9. cxd4 {[%clk 0:02:21.9]} 9... Qb6 {[%clk 0:02:07.7]}
10. Be3 {[%clk 0:02:16.3]} 10... Qb7 {[%clk 0:01:56.9]} 11. e5 {[%clk
0:02:04.6]} 11... dxe5 {[%clk 0:01:36.2]} 12. dxe5 {[%clk 0:02:04.2]} 12... Nd5
{[%clk 0:01:31.1]} 13. Bc5 {[%clk 0:01:51.1]} 13... O-O-O {[%clk 0:01:06.1]} 14.
Nc3 {[%clk 0:01:43.1]} 14... Nxc3 {[%clk 0:00:59.7]} 15. Qxc3 {[%clk 0:01:41.7]}
15... e6 {[%clk 0:00:59.3]} 16. Bxf8 {[%clk 0:01:37.8]} 16... Rhxf8 {[%clk
0:00:58.3]} 17. Rfd1 {[%clk 0:01:36.7]} 17... Kb8 {[%clk 0:00:54]} 18. Rac1
{[%clk 0:01:35.9]} 18... Rc8 {[%clk 0:00:52]} 19. Qd3 {[%clk 0:01:18]} 19...
Rfd8 {[%clk 0:00:48.2]} 20. Qxh7 {[%clk 0:01:15.9]} 20... Rg8 {[%clk 0:00:37.5]}
21. Qe4 {[%clk 0:01:11.8]} 21... Rgd8 {[%clk 0:00:28]} 22. b3 {[%clk 0:00:58.4]}
22... g6 {[%clk 0:00:27.4]} 23. a4 {[%clk 0:00:57.3]} 23... Na5 {[%clk
0:00:24.5]} 24. Rxc8+ {[%clk 0:00:53.3]} 24... Kxc8 {[%clk 0:00:21.2]} 25. Qxb7+
{[%clk 0:00:51.6]} 25... Nxb7 {[%clk 0:00:19.4]} 26. axb5 {[%clk 0:00:49.7]}
26... axb5 {[%clk 0:00:19.1]} 27. b4 {[%clk 0:00:43.9]} 27... Bc6 {[%clk
0:00:16.5]} 28. Rxd8+ {[%clk 0:00:40.5]} 28... Nxd8 {[%clk 0:00:14.8]} 29. h4
{[%clk 0:00:35.4]} 29... Kd7 {[%clk 0:00:12.2]} 30. Kf1 {[%clk 0:00:32.2]} 30...
Ke7 {[%clk 0:00:12.1]} 31. g4 {[%clk 0:00:29.1]} 31... f6 {[%clk 0:00:11.3]} 32.
g5 {[%clk 0:00:22.6]} 32... fxg5 {[%clk 0:00:09]} 33. Nxg5 {[%clk 0:00:20.1]}
33... Nf7 {[%clk 0:00:07.8]} 34. Nxf7 {[%clk 0:00:18.3]} 34... Kxf7 {[%clk
0:00:08]} 35. f4 {[%clk 0:00:17.2]} 35... Kg7 {[%clk 0:00:07.6]} 36. Kf2 {[%clk
0:00:17.1]} 36... Kf7 {[%clk 0:00:07.1]} 37. Kg3 {[%clk 0:00:17.2]} 37... Kg7
{[%clk 0:00:07]} 38. Kg4 {[%clk 0:00:17.4]} 38... Kh6 {[%clk 0:00:07.1]} 39. Bd3
{[%clk 0:00:15.6]} 39... Bd7 {[%clk 0:00:05.2]} 40. Be2 {[%clk 0:00:13.1]} 40...
Bc6 {[%clk 0:00:03.8]} 41. Kg3 {[%clk 0:00:07.6]} 41... Bd7 {[%clk 0:00:03.5]}
42. Bf3 {[%clk 0:00:05.4]} 42... Kg7 {[%clk 0:00:02.2]} 43. Be4 {[%clk
0:00:01.1]} 43... Kh6 {[%clk 0:00:01.9]} 0-1

[Event "Betsys MČR v online bleskovém šachu 2021"]
[Site "Chess.com"]
[Date "2021.04.17"]
[Round "12"]
[White "Rozmetal"]
[Black "nw_tynka"]
[Result "1-0"]
[WhiteElo "2163"]
[BlackElo "2172"]
[TimeControl "180+1"]
[EndTime "11:01:52 PDT"]
[Termination "Uživatel Rozmetal zvítězil po vzdání soupeře"]

1. e4 {[%clk 0:00:38.3]} 1... c5 {[%clk 0:02:58.1]} 2. Nf3 {[%clk 0:00:37.6]}
2... Nc6 {[%clk 0:02:57.7]} 3. d4 {[%clk 0:00:37.4]} 3... cxd4 {[%clk
0:02:57.5]} 4. c3 {[%clk 0:00:38.3]} 4... dxc3 {[%clk 0:02:56.8]} 5. Nxc3 {[%clk
0:00:39.2]} 5... d6 {[%clk 0:02:56]} 6. Bc4 {[%clk 0:00:39.5]} 6... e6 {[%clk
0:02:53.7]} 7. O-O {[%clk 0:00:39.9]} 7... Nf6 {[%clk 0:02:52.9]} 8. Qe2 {[%clk
0:00:40.3]} 8... Be7 {[%clk 0:02:46.2]} 9. Rd1 {[%clk 0:00:40.2]} 9... e5 {[%clk
0:02:37.4]} 10. b4 {[%clk 0:00:36.2]} 10... O-O {[%clk 0:02:33.4]} 11. b5 {[%clk
0:00:35.9]} 11... Na5 {[%clk 0:02:31.8]} 12. Nxe5 {[%clk 0:00:35.5]} 12... Nxc4
{[%clk 0:02:27.8]} 13. Nxc4 {[%clk 0:00:34.7]} 13... Qc7 {[%clk 0:02:11.2]} 14.
Bf4 {[%clk 0:00:32.1]} 14... Be6 {[%clk 0:02:05.9]} 15. Nd5 {[%clk 0:00:23.8]}
15... Bxd5 {[%clk 0:01:53.3]} 16. exd5 {[%clk 0:00:23.1]} 16... Rac8 {[%clk
0:01:49.1]} 17. Rac1 {[%clk 0:00:22.7]} 17... Qd7 {[%clk 0:01:43.8]} 18. a4
{[%clk 0:00:21.7]} 18... Rfe8 {[%clk 0:01:37.1]} 19. h3 {[%clk 0:00:20.7]} 19...
Bf8 {[%clk 0:01:34.9]} 20. Qd3 {[%clk 0:00:20.2]} 20... Rc5 {[%clk 0:01:22.6]}
21. Ne3 {[%clk 0:00:17.6]} 21... Rec8 {[%clk 0:01:11.3]} 22. Rxc5 {[%clk
0:00:15.7]} 22... Rxc5 {[%clk 0:01:10.5]} 23. Bg5 {[%clk 0:00:15.5]} 23... Ne8
{[%clk 0:00:55.9]} 24. Nf5 {[%clk 0:00:10.4]} 24... g6 {[%clk 0:00:51.8]} 25.
Nh6+ {[%clk 0:00:07.7]} 25... Bxh6 {[%clk 0:00:40.5]} 26. Bxh6 {[%clk
0:00:07.2]} 26... Ng7 {[%clk 0:00:39]} 27. Be3 {[%clk 0:00:05.8]} 27... Rc8
{[%clk 0:00:36.1]} 28. Bxa7 {[%clk 0:00:05.5]} 28... Nf5 {[%clk 0:00:34.4]} 29.
a5 {[%clk 0:00:04.4]} 29... Qc7 {[%clk 0:00:25.9]} 30. Bb6 {[%clk 0:00:03.9]}
30... Qc4 {[%clk 0:00:19.6]} 31. Qxc4 {[%clk 0:00:03.5]} 31... Rxc4 {[%clk
0:00:19.5]} 32. Ra1 {[%clk 0:00:04.4]} 32... Rb4 {[%clk 0:00:18.5]} 33. a6
{[%clk 0:00:02.4]} 33... bxa6 {[%clk 0:00:17.8]} 34. bxa6 {[%clk 0:00:03.2]}
34... Rc4 {[%clk 0:00:17.3]} 35. a7 {[%clk 0:00:04.1]} 35... Rc8 {[%clk
0:00:17]} 36. a8=Q {[%clk 0:00:05]} 36... Rxa8 {[%clk 0:00:16.7]} 37. Rxa8+
{[%clk 0:00:05.1]} 37... Kg7 {[%clk 0:00:16.6]} 38. g4 {[%clk 0:00:04.9]} 38...
Ne7 {[%clk 0:00:16.1]} 39. Bd4+ {[%clk 0:00:05.3]} 39... f6 {[%clk 0:00:14.1]}
40. Ra7 {[%clk 0:00:06.2]} 40... Kf7 {[%clk 0:00:14]} 41. Kg2 {[%clk 0:00:05.8]}
41... Ke8 {[%clk 0:00:12]} 42. Rxe7+ {[%clk 0:00:06]} 42... Kxe7 {[%clk
0:00:11.8]} 43. f4 {[%clk 0:00:06.9]} 43... Kf7 {[%clk 0:00:11.5]} 44. f5 {[%clk
0:00:07.4]} 44... gxf5 {[%clk 0:00:10.4]} 45. gxf5 {[%clk 0:00:08.3]} 45... Kg7
{[%clk 0:00:10.4]} 46. Kf3 {[%clk 0:00:09.2]} 46... Kf7 {[%clk 0:00:10.3]} 47.
Kg4 {[%clk 0:00:10.1]} 47... Kg7 {[%clk 0:00:09.9]} 48. Kh5 {[%clk 0:00:11]}
48... Kf7 {[%clk 0:00:09.8]} 49. h4 {[%clk 0:00:11.9]} 49... Kg7 {[%clk
0:00:08.6]} 50. Bc3 {[%clk 0:00:12.8]} 50... Kf7 {[%clk 0:00:07.6]} 51. Bd4
{[%clk 0:00:13.7]} 51... Kg7 {[%clk 0:00:07.4]} 52. Be3 {[%clk 0:00:14.1]} 52...
Kf7 {[%clk 0:00:07.3]} 53. Kh6 {[%clk 0:00:12.9]} 53... Kg8 {[%clk 0:00:06.5]}
54. Bd4 {[%clk 0:00:13.3]} 54... Kf7 {[%clk 0:00:06.4]} 55. Kxh7 {[%clk
0:00:13.3]} 1-0

[Event "Betsys MČR v online bleskovém šachu 2021"]
[Site "Chess.com"]
[Date "2021.04.17"]
[Round "12"]
[White "Lukuluss88"]
[Black "horvi1"]
[Result "0-1"]
[WhiteElo "2034"]
[BlackElo "2237"]
[TimeControl "180+1"]
[EndTime "11:01:53 PDT"]
[Termination "Uživatel horvi1 zvítězil matem"]

1. c4 {[%clk 0:03:00.4]} 1... Nf6 {[%clk 0:03:00]} 2. Nc3 {[%clk 0:02:59.9]}
2... e6 {[%clk 0:03:00.1]} 3. g3 {[%clk 0:02:58.9]} 3... d5 {[%clk 0:02:59.3]}
4. cxd5 {[%clk 0:02:58.2]} 4... exd5 {[%clk 0:02:59]} 5. d4 {[%clk 0:02:58.2]}
5... Bd6 {[%clk 0:02:57.7]} 6. Bg2 {[%clk 0:02:57.8]} 6... c6 {[%clk 0:02:57.8]}
7. Bg5 {[%clk 0:02:52]} 7... Nbd7 {[%clk 0:02:50.7]} 8. Nf3 {[%clk 0:02:50.1]}
8... h6 {[%clk 0:02:48.8]} 9. Bxf6 {[%clk 0:02:47.8]} 9... Nxf6 {[%clk
0:02:48.4]} 10. O-O {[%clk 0:02:48]} 10... O-O {[%clk 0:02:48]} 11. a3 {[%clk
0:02:43.6]} 11... a5 {[%clk 0:02:46.7]} 12. Rb1 {[%clk 0:02:42.9]} 12... Bf5
{[%clk 0:02:41.6]} 13. Rc1 {[%clk 0:02:40.9]} 13... Re8 {[%clk 0:02:35.1]} 14.
e3 {[%clk 0:02:38.5]} 14... Ne4 {[%clk 0:02:16.3]} 15. Nxe4 {[%clk 0:02:36.4]}
15... Bxe4 {[%clk 0:02:16.4]} 16. Nd2 {[%clk 0:02:34.3]} 16... Bxg2 {[%clk
0:02:15.8]} 17. Kxg2 {[%clk 0:02:33.2]} 17... a4 {[%clk 0:02:05.3]} 18. Nf3
{[%clk 0:02:21.4]} 18... Qb6 {[%clk 0:02:00.3]} 19. Qd2 {[%clk 0:02:16.8]} 19...
Ra5 {[%clk 0:01:57.7]} 20. Rc2 {[%clk 0:02:16.2]} 20... Rb5 {[%clk 0:01:57.2]}
21. Rfc1 {[%clk 0:02:14.3]} 21... Rb3 {[%clk 0:01:48.2]} 22. Ne1 {[%clk
0:01:58.4]} 22... Re6 {[%clk 0:01:38.1]} 23. Nd3 {[%clk 0:01:57.5]} 23... Rf6
{[%clk 0:01:25.1]} 24. Rc3 {[%clk 0:01:54]} 24... Rxc3 {[%clk 0:01:06.5]} 25.
Qxc3 {[%clk 0:01:45.8]} 25... Qc7 {[%clk 0:01:00.4]} 26. Qc2 {[%clk 0:01:42.2]}
26... Qd7 {[%clk 0:00:58.9]} 27. Qxa4 {[%clk 0:01:30.2]} 27... Qf5 {[%clk
0:00:58.8]} 28. Rd1 {[%clk 0:01:16.3]} 28... Qf3+ {[%clk 0:00:58.1]} 29. Kg1
{[%clk 0:01:15.7]} 29... h5 {[%clk 0:00:58.3]} 30. Qc2 {[%clk 0:01:12.8]} 30...
h4 {[%clk 0:00:56.7]} 31. Ne1 {[%clk 0:01:12.9]} 31... Qg4 {[%clk 0:00:53.3]}
32. Ng2 {[%clk 0:01:09.2]} 32... hxg3 {[%clk 0:00:44.3]} 33. hxg3 {[%clk
0:01:08]} 33... Rh6 {[%clk 0:00:42.7]} 34. f4 {[%clk 0:00:49.3]} 34... Qxg3
{[%clk 0:00:40.6]} 35. Qf2 {[%clk 0:00:48]} 35... Qh2+ {[%clk 0:00:35.3]} 36.
Kf1 {[%clk 0:00:47.9]} 36... Qh1+ {[%clk 0:00:32.1]} 37. Ke2 {[%clk 0:00:47.8]}
37... Qh5+ {[%clk 0:00:31.7]} 38. Qf3 {[%clk 0:00:46.1]} 38... Qf5 {[%clk
0:00:28.8]} 39. Rd2 {[%clk 0:00:42.2]} 39... Rh3 {[%clk 0:00:26.5]} 40. Qf2
{[%clk 0:00:39.6]} 40... Bc7 {[%clk 0:00:21.8]} 41. b4 {[%clk 0:00:20.4]} 41...
Qe4 {[%clk 0:00:21.8]} 42. Kf1 {[%clk 0:00:16.7]} 42... Rh1+ {[%clk 0:00:20.6]}
43. Ke2 {[%clk 0:00:16.8]} 43... Rh2 {[%clk 0:00:20.6]} 44. Kf1 {[%clk 0:00:17]}
44... Qb1+ {[%clk 0:00:18.1]} 45. Ke2 {[%clk 0:00:17.2]} 45... Rh1 {[%clk
0:00:14.1]} 46. Ne1 {[%clk 0:00:14.5]} 46... Qe4 {[%clk 0:00:11.7]} 47. Ng2
{[%clk 0:00:14]} 47... Rh2 {[%clk 0:00:11.5]} 48. Kf1 {[%clk 0:00:13.8]} 48...
Bd8 {[%clk 0:00:11.1]} 49. Qg3 {[%clk 0:00:12.1]} 49... Rh1+ {[%clk 0:00:10.4]}
50. Kf2 {[%clk 0:00:12.1]} 50... Qb1 {[%clk 0:00:08.4]} 51. Ke2 {[%clk
0:00:09.6]} 51... Qf1# {[%clk 0:00:07.4]} 0-1

[Event "Betsys MČR v online bleskovém šachu 2021"]
[Site "Chess.com"]
[Date "2021.04.17"]
[Round "12"]
[White "PremetFugas"]
[Black "Pekibeast"]
[Result "0-1"]
[WhiteElo "2077"]
[BlackElo "1890"]
[TimeControl "180+1"]
[EndTime "11:01:56 PDT"]
[Termination "Uživatel Pekibeast zvítězil na čas"]

1. d4 {[%clk 0:03:00.9]} 1... d6 {[%clk 0:02:59]} 2. e4 {[%clk 0:03:00.1]} 2...
Nf6 {[%clk 0:02:57.1]} 3. Nc3 {[%clk 0:02:59.4]} 3... c6 {[%clk 0:02:56.4]} 4.
Be3 {[%clk 0:02:58]} 4... Nbd7 {[%clk 0:02:56.7]} 5. f3 {[%clk 0:02:55.5]} 5...
Qc7 {[%clk 0:02:55.3]} 6. g4 {[%clk 0:02:51.5]} 6... h6 {[%clk 0:02:54.1]} 7.
Nge2 {[%clk 0:02:49.5]} 7... e5 {[%clk 0:02:54.1]} 8. Bg2 {[%clk 0:02:46.5]}
8... Be7 {[%clk 0:02:53.5]} 9. Qd2 {[%clk 0:02:44.7]} 9... Nb6 {[%clk
0:02:48.7]} 10. b3 {[%clk 0:02:43.8]} 10... Bd7 {[%clk 0:02:33.2]} 11. h4 {[%clk
0:02:42.2]} 11... O-O-O {[%clk 0:02:31.9]} 12. a4 {[%clk 0:02:31]} 12... exd4
{[%clk 0:02:25.1]} 13. Nxd4 {[%clk 0:02:28.5]} 13... Be6 {[%clk 0:02:22.3]} 14.
a5 {[%clk 0:02:22.8]} 14... Nbd7 {[%clk 0:02:16.2]} 15. Nxe6 {[%clk 0:02:18.1]}
15... fxe6 {[%clk 0:02:15.8]} 16. Bxa7 {[%clk 0:02:17.1]} 16... Nc5 {[%clk
0:02:12.4]} 17. Bb6 {[%clk 0:02:14.3]} 17... Qd7 {[%clk 0:02:11]} 18. Bxd8
{[%clk 0:02:12.2]} 18... Rxd8 {[%clk 0:02:11.9]} 19. b4 {[%clk 0:02:03.9]} 19...
Na6 {[%clk 0:02:05.3]} 20. Na4 {[%clk 0:02:02.7]} 20... Qc7 {[%clk 0:02:00.8]}
21. Nb6+ {[%clk 0:02:01.4]} 21... Kb8 {[%clk 0:02:00.8]} 22. c3 {[%clk 0:01:59]}
22... d5 {[%clk 0:01:56.1]} 23. exd5 {[%clk 0:01:49.7]} 23... Nxd5 {[%clk
0:01:50.6]} 24. Nxd5 {[%clk 0:01:44.5]} 24... Rxd5 {[%clk 0:01:51.5]} 25. Qf2
{[%clk 0:01:29.6]} 25... Qe5+ {[%clk 0:01:42]} 26. Kf1 {[%clk 0:01:27.8]} 26...
Qxc3 {[%clk 0:01:41.1]} 27. Re1 {[%clk 0:01:24.6]} 27... Bxb4 {[%clk 0:01:35.8]}
28. f4 {[%clk 0:01:20.2]} 28... Rd2 {[%clk 0:01:27.3]} 29. Qf3 {[%clk
0:01:05.3]} 29... Rd3 {[%clk 0:01:21.5]} 30. Qe2 {[%clk 0:01:00.4]} 30... Qxe1+
{[%clk 0:01:19.4]} 31. Qxe1 {[%clk 0:01:00.3]} 31... Bxe1 {[%clk 0:01:19.6]} 32.
Kxe1 {[%clk 0:01:00.7]} 32... c5 {[%clk 0:01:17]} 33. Ke2 {[%clk 0:01:00.4]}
33... c4 {[%clk 0:01:17.3]} 34. Rb1 {[%clk 0:00:58.7]} 34... Rd7 {[%clk
0:00:59.2]} 35. Bc6 {[%clk 0:00:54.7]} 35... Rc7 {[%clk 0:00:56]} 36. Bb5 {[%clk
0:00:54.7]} 36... Ka7 {[%clk 0:00:53]} 37. Rc1 {[%clk 0:00:54]} 37... c3 {[%clk
0:00:51.9]} 38. f5 {[%clk 0:00:43.9]} 38... exf5 {[%clk 0:00:50.4]} 39. gxf5
{[%clk 0:00:43.8]} 39... Nb4 {[%clk 0:00:50.5]} 40. Ba4 {[%clk 0:00:32.6]} 40...
Rc5 {[%clk 0:00:47.7]} 41. Ke3 {[%clk 0:00:29.9]} 41... Rxf5 {[%clk 0:00:44.7]}
42. Ke4 {[%clk 0:00:26.4]} 42... Rc5 {[%clk 0:00:40.6]} 43. Kd4 {[%clk
0:00:24.3]} 43... Rxa5 {[%clk 0:00:36.4]} 44. Bb3 {[%clk 0:00:13.8]} 44... Nc6+
{[%clk 0:00:33.4]} 45. Kd3 {[%clk 0:00:11]} 45... Rc5 {[%clk 0:00:31.8]} 46. Bg8
{[%clk 0:00:09]} 46... Kb6 {[%clk 0:00:31.5]} 47. Rb1+ {[%clk 0:00:08.1]} 47...
Kc7 {[%clk 0:00:31.5]} 48. Rc1 {[%clk 0:00:07.6]} 48... b5 {[%clk 0:00:29.9]}
49. Bb3 {[%clk 0:00:06.3]} 49... b4 {[%clk 0:00:28.4]} 50. Rf1 {[%clk
0:00:04.4]} 50... Kd6 {[%clk 0:00:25.9]} 51. Rd1 {[%clk 0:00:02]} 51... Ke5
{[%clk 0:00:24.4]} 52. Re1+ {[%clk 0:00:02.1]} 52... Kf4 {[%clk 0:00:24.4]} 53.
Rf1+ {[%clk 0:00:02.4]} 53... Kg3 {[%clk 0:00:24.6]} 54. Rg1+ {[%clk 0:00:02.2]}
54... Kxh4 {[%clk 0:00:24.2]} 55. Ke3 {[%clk 0:00:01.9]} 55... g5 {[%clk
0:00:22.3]} 56. Kf3 {[%clk 0:00:01.7]} 56... Rf5+ {[%clk 0:00:22.5]} 57. Ke4
{[%clk 0:00:01.6]} 57... Rf4+ {[%clk 0:00:22.5]} 58. Ke3 {[%clk 0:00:02]} 58...
Nd4 {[%clk 0:00:22.2]} 59. Bc4 {[%clk 0:00:02]} 59... Nf5+ {[%clk 0:00:20.6]}
0-1